bitfinex/quotes_ETHUSD_20250428
["timestamp","ask_amount","ask_price","bid_price","bid_amount"]
[1745871982675,5.5033,1789.5,1789.2,5.58909009]
[1745871982859,5.5033,1789.5,1789.2,11.17797842]
[1745871983060,5.5033,1789.5,1789.3,5.58874296]
[1745871984283,5.5033,1789.5,1789.2,5.58888833]
[1745871984588,5.5033,1789.5,1789.2,5.58886553]
[1745871984950,5.5033,1789.5,1789.2,11.17772843]
[1745871985567,5.5033,1789.5,1789.2,11.17772429]
[1745871986577,5.5033,1789.5,1789.3,5.58877569]
[1745871986888,5.5033,1789.5,1789.2,5.58886906]
[1745871987588,5.5033,1789.5,1789.3,5.58874842]
[1745871987589,0.30928287,1789.4,1789.3,5.58874842]
[1745871992258,5.003,1789.5,1789.3,5.58874842]
[1745871992890,5.003,1789.5,1789.3,11.17730767]
[1745871993094,5.003,1789.5,1789.3,5.58855925]
[1745871994500,0.30915936,1789.4,1789.3,5.58855925]
[1745871995905,0.7576,1788.9,1788.3,0.8093]
[1745871996078,0.7576,1788.9,1788.1,0.8593]
[1745871996079,6.3488776,1788.5,1788.1,0.8593]
[1745871996403,9.9351047,1788.5,1788.1,0.05]
[1745871996716,18.14143805,1788.5,1788.1,0.05]
[1745871996998,14.55521095,1788.5,1788.1,0.05]
[1745871997177,15.06921274,1788.5,1788.1,0.05]
[1745871997375,20.06721274,1788.5,1788.1,0.05]
[1745871998165,20.49311504,1788.5,1788.1,0.05]
[1745872001905,20.49126924,1788.5,1788.1,0.05]
[1745872003620,15.49326924,1788.5,1788.1,0.05]
[1745872003911,23.49326924,1788.5,1788.1,0.05]
[1745872004086,20.49326924,1788.5,1788.1,0.05]
[1745872008525,42.06992124,1788.5,1788.1,0.05]
[1745872008810,5.59203683,1788.3,1788.1,0.05]
[1745872010089,5.59420295,1787.6,1787.3,0.5]
[1745872010436,5.59471858,1787.4,1787.3,0.5]
[1745872010578,6.26437389,1787.4,1787.3,0.5]
[1745872011218,6.26437389,1787.4,1787.1,0.05]
[1745872011219,9.40834467,1787.2,1787.1,0.05]
[1745872011388,21.73833956,1787.2,1787.1,0.05]
[1745872011593,16.4015092,1787.2,1787.1,0.05]
[1745872011785,6.99316453,1787.2,1787.1,0.05]
[1745872012116,17.5835092,1787.2,1787.1,0.05]
[1745872012320,19.38738117,1787.2,1787.1,0.05]
[1745872012504,0.42916274,1787.2,1787.1,0.05]
[1745872012693,4.995,1787.2,1787.1,0.05]
[1745872013305,14.01682068,1787.2,1787.1,0.05]
[1745872013519,0.42647601,1787.2,1787.1,0.05]
[1745872013692,4.997,1787.2,1787.1,0.05]
[1745872014017,11.09204467,1787.2,1787.1,0.05]
[1745872014796,11.5467,1787.2,1787.1,0.05]
[1745872014997,17.14204467,1787.2,1787.1,0.05]
[1745872015201,64.2336117,1787.2,1787.1,0.05]
[1745872015412,21.3045017,1787.2,1787.1,0.05]
[1745872015614,29.3297087,1787.2,1787.1,0.05]
[1745872016012,29.3297087,1787.2,1786.6,0.4137604]
[1745872016013,6.3477105,1786.7,1786.6,0.4137604]
[1745872016211,81.32326244,1786.7,1786.6,0.4137604]
[1745872016402,34.82248155,1786.7,1786.6,0.4137604]
[1745872016903,35.23648947,1786.7,1786.6,0.4137604]
[1745872017635,28.88977897,1786.7,1786.6,0.4137604]
[1745872017798,21.791,1786.7,1786.6,0.4137604]
[1745872018795,22.2199484,1786.7,1786.6,0.4137604]
[1745872019014,30.8168589,1786.7,1786.6,0.4137604]
[1745872019236,87.51978279,1786.7,1786.6,0.4137604]
[1745872019394,5.59847721,1786.2,1786.1,0.05]
[1745872019603,6.34927721,1786.2,1786.1,0.05]
[1745872019802,11.34827721,1786.2,1786.1,0.05]
[1745872020022,6.34880776,1786.4,1786.1,0.05]
[1745872020225,4.999,1786.3,1786.1,0.05]
[1745872020611,26.72400304,1786.7,1786.1,1.41739251]
[1745872020823,4.999,1786.6,1786.3,5.59805787]
[1745872021036,4.999,1786.6,1786.3,5.59792589]
[1745872021234,16.793,1786.7,1786.5,5.59740715]
[1745872021450,4.999,1786.6,1786.3,5.59799175]
[1745872023230,4.999,1786.6,1786.4,5.59783447]
[1745872023406,4.999,1786.6,1786.5,5.59753708]
[1745872024007,4.999,1786.6,1786.4,5.59764743]
[1745872024236,4.999,1786.6,1786.3,5.59810263]
[1745872024428,4.999,1786.6,1786.3,5.59790036]
[1745872024628,4.999,1786.6,1786.4,5.59780187]
[1745872025524,4.999,1786.6,1786.5,5.59753708]
[1745872026949,4.999,1786.7,1786.6,6.42142377]
[1745872029007,4.999,1786.7,1786.6,6.97142377]
[1745872029212,23.76312998,1787.2,1786.9,5.59628066]
[1745872029525,7.999,1787.1,1787.0,5.59571485]
[1745872029832,22.853,1787.2,1787.1,5.59565776]
[1745872030036,27.852,1787.2,1787.1,5.59565776]
[1745872030447,16.803,1787.2,1787.1,5.59565776]
[1745872030844,21.802,1787.2,1787.1,5.59565776]
[1745872031811,16.803,1787.2,1787.0,0.7826]
[1745872032048,4.999,1787.1,1787.0,0.7826]
[1745872032248,4.999,1787.1,1787.0,6.3785709]
[1745872032447,4.999,1787.1,1787.0,0.7826]
[1745872032749,4.999,1787.1,1787.0,6.3785709]
[1745872033451,4.999,1787.1,1786.7,0.8296]
[1745872033632,5.59608066,1787.0,1786.6,5.5970995]
[1745872033826,5.59608066,1787.0,1786.5,5.5973552]
[1745872034031,5.59608066,1787.0,1786.4,6.42735916]
[1745872034032,5.59674673,1786.8,1786.4,6.42726364]
[1745872034335,4.999,1786.7,1786.4,6.42726364]
[1745872034525,4.999,1786.7,1786.4,5.59766364]
[1745872034722,4.999,1786.7,1786.4,5.59761767]
[1745872034953,4.999,1786.7,1786.4,11.19523534]
[1745872035153,2.2,1786.6,1786.4,5.59761767]
[1745872035553,4.999,1786.7,1786.4,5.59761767]
[1745872035763,5.69305139,1786.7,1786.4,11.19523858]
[1745872036069,5.69305139,1786.7,1786.5,5.59750032]
[1745872036223,5.69305139,1786.7,1786.4,5.59761767]
[1745872036418,5.69305139,1786.7,1786.5,5.59752691]
[1745872036646,5.69305139,1786.7,1786.4,5.59761767]
[1745872036852,5.69305139,1786.7,1786.5,5.59725627]
[1745872037060,0.51305763,1786.6,1786.4,5.59753781]
[1745872038160,0.51305763,1786.6,1786.4,11.19518139]
[1745872038453,0.51305763,1786.6,1786.5,5.59753708]
[1745872038662,0.51305763,1786.6,1786.4,5.59753781]
[1745872038663,5.51005763,1786.6,1786.4,5.59753781]
[1745872039029,5.51005763,1786.6,1786.4,11.19516542]
[1745872039452,5.51005763,1786.6,1786.4,5.59753781]
[1745872039878,5.51005763,1786.6,1786.5,5.59753708]
[1745872040076,4.997,1786.6,1786.5,5.59753708]
[1745872040252,5.82056765,1786.6,1786.5,5.59753708]
[1745872040782,5.82056765,1786.6,1786.4,5.59753781]
[1745872041361,0.30883737,1786.5,1786.4,5.59753781]
[1745872041917,2.75612442,1786.5,1786.1,0.05]
[1745872042060,5.60144098,1785.3,1785.1,1.16619761]
[1745872042397,4.998,1785.2,1785.1,1.16619761]
[1745872042606,0.51473028,1785.2,1785.1,1.16619761]
[1745872042906,0.51473028,1785.2,1785.1,7.444951]
[1745872043084,0.51473028,1785.2,1785.1,10.444951]
[1745872043602,4.998,1785.5,1785.1,10.444951]
[1745872043603,4.998,1785.5,1785.4,6.42668577]
[1745872043815,4.998,1785.8,1785.7,5.59998474]
[1745872043968,4.998,1785.8,1785.6,5.60034713]
[1745872043969,4.998,1785.8,1785.6,5.60006465]
[1745872044167,4.998,1785.8,1785.7,5.6000448]
[1745872045506,4.998,1785.8,1785.7,8.04818338]
[1745872045671,16.803,1786.3,1786.0,5.59879795]
[1745872045873,4.998,1786.2,1786.1,5.59879066]
[1745872046408,4.998,1786.2,1786.1,6.37689066]
[1745872047183,4.999,1786.4,1786.3,0.55]
[1745872047509,4.999,1786.4,1786.3,6.1481638]
[1745872050744,4.999,1786.4,1786.3,7.10353811]
[1745872051796,4.999,1786.4,1786.3,5.5981638]
[1745872052010,4.999,1786.4,1786.1,6.92677606]
[1745872052210,4.999,1786.4,1786.0,3.0]
[1745872052211,4.999,1786.4,1785.9,3.7636]
[1745872052463,4.999,1786.4,1786.2,5.59837391]
[1745872053143,4.999,1786.4,1786.3,5.5981638]
[1745872057277,4.999,1786.4,1786.3,6.3838638]
[1745872057575,4.999,1786.4,1786.3,6.9338638]
[1745872064573,4.998,1786.7,1786.5,5.59724483]
[1745872065482,4.998,1786.7,1786.5,5.59731119]
[1745872066176,4.998,1786.7,1786.6,5.59722377]
[1745872066400,4.998,1786.7,1786.5,5.59731119]
[1745872066875,4.998,1786.7,1786.6,5.59722377]
[1745872067077,4.36687673,1786.7,1786.6,5.59722377]
[1745872067475,4.36687673,1786.7,1786.5,5.59731119]
[1745872067654,4.36687673,1786.7,1786.5,5.59731031]
[1745872067856,4.36687673,1786.7,1786.5,11.19461879]
[1745872068256,4.36687673,1786.7,1786.6,5.59722377]
[1745872069385,0.7925,1786.9,1786.8,5.59659726]
[1745872069572,21.83,1787.0,1786.9,5.59628406]
[1745872069746,21.83,1787.0,1786.9,6.14628406]
[1745872069949,0.8009,1787.4,1787.2,5.59516666]
[1745872070148,5.023,1787.3,1787.2,5.59516666]
[1745872070374,8.023,1787.3,1787.2,5.59516666]
[1745872070645,5.023,1787.3,1787.2,5.59516666]
[1745872070879,5.023,1787.3,1787.2,5.59515043]
[1745872071062,5.023,1787.3,1787.2,6.79270791]
[1745872071500,5.023,1787.3,1787.2,7.34270791]
[1745872074119,0.8069,1788.1,1787.6,5.59378349]
[1745872074294,5.022,1787.9,1787.4,0.55]
[1745872074492,5.022,1787.9,1787.6,5.59405191]
[1745872074704,5.5242,1787.9,1787.6,5.59405191]
[1745872075114,0.8069,1787.8,1787.3,6.41817336]
[1745872075419,9.40037995,1787.8,1787.3,5.59491116]
[1745872075633,6.40037995,1787.8,1787.3,5.59491116]
[1745872075938,0.8069,1787.8,1787.4,5.59467473]
[1745872076598,1.99932627,1787.8,1787.4,5.59452963]
[1745872076807,1.99932627,1787.8,1787.4,5.59454468]
[1745872077198,1.99932627,1787.8,1787.5,5.59421662]
[1745872077695,1.99932627,1787.8,1787.5,11.18852103]
[1745872077916,1.99932627,1787.8,1787.5,5.59421662]
[1745872080403,3.0,1787.7,1787.5,5.59421662]
[1745872080610,1.99932627,1787.8,1787.5,5.59421662]
[1745872081010,7.5928614,1787.8,1787.4,5.59456939]
[1745872081214,5.5942764,1787.6,1787.2,5.59503494]
[1745872081417,5.021,1787.5,1787.3,5.59500993]
[1745872081729,5.021,1787.5,1787.1,3.8233]
[1745872081930,5.021,1787.5,1787.3,5.5947734]
[1745872082602,5.021,1787.5,1787.4,5.59471858]
[1745872085499,5.021,1787.5,1787.4,8.08816778]
[1745872085910,5.021,1787.5,1787.4,11.08816778]
[1745872087737,0.8246,1788.0,1787.9,5.59315397]
[1745872087905,5.8456,1788.0,1787.8,11.18664244]
[1745872088238,5.8456,1788.0,1787.8,5.59325372]
[1745872089240,5.8456,1788.0,1787.9,5.59315397]
[1745872089622,0.8183,1787.9,1787.5,5.59420982]
[1745872089824,0.8183,1787.9,1787.6,5.59399504]
[1745872090032,0.8183,1787.9,1787.6,5.59408374]
[1745872090204,0.8183,1787.9,1787.6,11.18797392]
[1745872090410,0.8183,1787.9,1787.6,5.59389018]
[1745872090915,1.0,1787.8,1787.5,11.18839955]
[1745872091334,1.0,1787.8,1787.4,4.1189492]
[1745872091335,1.0,1787.8,1787.6,5.59409028]
[1745872092025,1.0,1787.8,1787.5,5.59419962]
[1745872092207,6.59370297,1787.8,1787.3,5.59486314]
[1745872092402,7.02687109,1787.7,1787.3,5.5949265]
[1745872092711,5.021,1787.6,1787.3,5.5949265]
[1745872093217,5.021,1787.6,1787.3,11.18974045]
[1745872093861,5.021,1787.6,1787.4,5.59467029]
[1745872095150,5.021,1787.6,1787.4,5.59453159]
[1745872095459,5.021,1787.6,1787.5,5.59440559]
[1745872100570,5.3306062,1787.6,1787.5,5.59440559]
[1745872100738,5.3306062,1787.6,1787.5,7.26329842]
[1745872100939,0.3096062,1787.6,1787.5,12.74864031]
[1745872101670,4.997,1787.7,1787.6,5.59409263]
[1745872102270,4.997,1787.8,1787.7,5.59359291]
[1745872102575,4.997,1787.8,1787.6,5.59390268]
[1745872102866,5.30661738,1787.8,1787.6,11.18783181]
[1745872103068,5.30661738,1787.8,1787.7,5.59377971]
[1745872106172,5.83727912,1787.8,1787.4,5.59451761]
[1745872106376,0.7913,1787.7,1787.4,5.59451402]
[1745872106674,0.30961738,1787.6,1787.4,11.18902499]
[1745872107078,0.30961738,1787.6,1787.5,5.59440559]
[1745872108776,0.30961738,1787.6,1787.4,5.59451097]
[1745872109328,0.30961738,1787.6,1787.2,5.59529509]
[1745872109612,0.30961738,1787.6,1787.3,5.59482419]
[1745872109801,0.30961738,1787.6,1787.2,0.63553951]
[1745872110003,0.30961738,1787.6,1787.3,0.55]
[1745872110180,0.30961738,1787.6,1787.5,5.59440559]
[1745872110381,0.30961738,1787.6,1787.3,0.55]
[1745872110627,0.30961738,1787.6,1787.4,5.59452952]
[1745872111294,4.996,1787.5,1787.4,5.59452952]
[1745872111494,4.996,1787.5,1787.3,6.81193875]
[1745872111899,4.996,1787.5,1787.3,12.40678828]
[1745872112308,4.996,1787.5,1787.4,5.59471858]
[1745872112680,4.996,1787.5,1787.4,6.97291858]
[1745872112880,5.30561738,1787.5,1787.4,8.29640421]
[1745872113476,5.30561738,1787.5,1787.4,6.91820421]
[1745872113677,4.996,1787.5,1787.4,5.59471858]
[1745872113882,5.30572688,1787.5,1787.4,5.59471858]
[1745872116313,5.30572688,1787.5,1787.3,11.18965134]
[1745872116520,5.30572688,1787.5,1787.3,11.18963741]
[1745872116686,5.30572688,1787.5,1787.3,5.59481421]
[1745872116886,0.30972688,1787.4,1787.3,5.59481421]
[1745872123527,0.30972688,1787.4,1787.3,7.15616911]
[1745872124115,4.996,1787.5,1787.4,5.59471858]
[1745872124836,5.3052239,1787.5,1787.4,5.59471858]
[1745872127447,5.3052239,1787.5,1787.4,9.10450687]
[1745872127649,5.3052239,1787.5,1787.4,9.86320687]
[1745872127944,5.3052239,1787.5,1787.4,11.56514447]
[1745872128153,4.996,1787.5,1787.4,11.56514447]
[1745872130951,5.59292171,1788.0,1787.6,5.59382984]
[1745872131158,0.7871,1788.6,1788.0,3.0]
[1745872131353,1.37449317,1788.6,1788.1,2.95978829]
[1745872131560,1.37449317,1788.6,1788.2,5.59204564]
[1745872132026,0.30911119,1788.5,1788.3,5.5918935]
[1745872132553,0.30911119,1788.5,1788.4,5.59159024]
[1745872134825,0.30911119,1788.5,1788.4,6.70993861]
[1745872135027,0.7871,1788.6,1788.5,5.5912776]
[1745872135967,0.05,1788.9,1788.6,5.59079884]
[1745872136144,0.05,1788.9,1788.8,9.91252818]
[1745872136347,0.05,1788.9,1788.8,14.46284624]
[1745872136523,0.05,1788.9,1788.8,7.95305795]
[1745872136856,0.05,1788.9,1788.8,7.14065795]
[1745872139768,0.05,1788.9,1788.6,5.59085246]
[1745872139926,5.64006935,1788.9,1788.5,6.0044749]
[1745872140146,0.05,1788.9,1788.8,9.14033989]
[1745872140743,0.05,1788.9,1788.8,9.89643989]
[1745872147815,0.05,1788.9,1788.8,9.89643989]
[1745872149124,5.8226,1789.5,1788.8,9.89643989]
[1745872149125,5.8226,1789.5,1789.4,5.5884654]
[1745872151588,5.8226,1789.5,1789.3,5.58856398]
[1745872152930,8.0226,1789.5,1789.3,5.58856398]
[1745872153112,5.8226,1789.5,1789.3,5.58856398]
[1745872155609,4.994,1789.5,1789.4,11.60839315]
[1745872155815,4.994,1789.5,1789.4,6.1384654]
[1745872157150,4.994,1789.5,1789.3,6.70631215]
[1745872157355,5.7458,1789.5,1789.2,5.58898474]
[1745872157529,5.7458,1789.5,1789.3,5.58877637]
[1745872157852,5.7458,1789.5,1789.3,11.17736316]
[1745872158061,5.7458,1789.5,1789.3,5.58858015]
[1745872158216,5.7458,1789.5,1789.4,5.5884654]
[1745872158756,5.7458,1789.5,1789.3,5.58858015]
[1745872159269,5.7458,1789.5,1789.4,5.5884654]
[1745872162684,4.994,1789.5,1789.4,5.5884654]
[1745872164287,4.994,1789.5,1789.3,8.54238893]
[1745872165194,4.994,1789.5,1789.3,14.13095523]
[1745872165964,0.30948833,1789.4,1789.3,8.54219024]
[1745872166672,0.30948833,1789.4,1789.2,5.58895086]
[1745872166871,0.30948833,1789.3,1789.2,5.58886236]
[1745872168187,0.30948833,1789.4,1789.3,5.58877773]
[1745872171494,4.66204911,1789.5,1789.3,11.17755546]
[1745872173130,4.66204911,1789.5,1789.3,5.58877773]
[1745872176537,4.66204911,1789.5,1789.3,5.5886069]
[1745872177520,4.66204911,1789.5,1789.3,11.17717662]
[1745872177695,4.66204911,1789.5,1789.3,5.58856972]
[1745872184395,4.66204911,1789.5,1789.3,11.1771595]
[1745872184611,4.66204911,1789.5,1789.3,5.58856972]
[1745872187321,4.66204911,1789.5,1789.3,5.58856962]
[1745872189236,4.66204911,1789.5,1789.3,11.17714855]
[1745872190043,4.66204911,1789.5,1789.3,5.58856962]
[1745872191459,4.66204911,1789.5,1789.3,11.17712164]
[1745872191740,4.66204911,1789.5,1789.4,5.5884654]
[1745872192543,4.97183659,1789.5,1789.4,5.5884654]
[1745872201444,4.97183659,1789.5,1789.4,7.31314278]
[1745872202552,0.30978748,1789.5,1789.4,8.13184278]
[1745872202910,0.42053957,1790.6,1789.8,6.95591644]
[1745872203184,5.7505,1791.0,1790.6,5.58451414]
[1745872203357,5.7505,1791.0,1790.7,5.58427656]
[1745872203542,5.7505,1791.0,1790.7,5.58424931]
[1745872203739,5.7505,1791.0,1790.4,0.8187]
[1745872203938,5.7505,1791.0,1790.2,0.55]
[1745872203939,11.3341022,1791.0,1790.3,3.50362394]
[1745872204179,11.3341022,1791.0,1790.6,11.16905846]
[1745872204180,6.88391022,1791.0,1790.6,11.16905846]
[1745872204367,12.46740396,1791.0,1790.6,5.58449272]
[1745872204767,6.88391022,1791.0,1790.3,3.50362394]
[1745872204945,0.7548,1790.7,1790.3,3.50362394]
[1745872205278,4.988,1790.6,1790.4,5.58508769]
[1745872205483,4.988,1790.6,1790.4,11.17020379]
[1745872206183,4.988,1790.6,1790.5,5.58503211]
[1745872207782,4.988,1790.6,1790.4,5.58508769]
[1745872207989,4.988,1790.6,1790.3,6.1355014]
[1745872208171,4.988,1790.6,1790.3,5.58556975]
[1745872208376,6.12073305,1790.6,1790.3,5.58556975]
[1745872208948,6.12073305,1790.6,1790.3,5.5854628]
[1745872209374,6.12073305,1790.6,1790.2,5.58575859]
[1745872209375,11.70547467,1790.6,1790.2,5.58575859]
[1745872209886,11.70547467,1790.6,1790.2,11.17150266]
[1745872210100,11.70547467,1790.6,1790.2,5.58574407]
[1745872210261,6.75569115,1790.5,1790.2,5.58593849]
[1745872210668,1.17054747,1790.5,1790.2,5.58593849]
[1745872211068,6.75564772,1790.5,1790.1,11.17233634]
[1745872211285,6.75564772,1790.5,1790.1,5.58608186]
[1745872211601,0.7963,1790.4,1790.1,5.58608186]
[1745872211798,7.05741045,1790.4,1789.9,5.58671524]
[1745872211962,0.7963,1790.1,1789.6,1.20742597]
[1745872212166,4.986,1790.0,1789.8,5.58714933]
[1745872212589,4.3518468,1790.0,1789.8,5.5870288]
[1745872212994,4.3518468,1790.0,1789.9,5.58690429]
[1745872215692,4.3518468,1790.0,1789.8,5.5870445]
[1745872218914,4.3518468,1790.0,1789.8,11.17406478]
[1745872220716,4.3518468,1790.0,1789.9,5.58690429]
[1745872222181,4.984,1790.0,1789.9,6.36500429]
[1745872222381,4.984,1790.0,1789.9,7.56021266]
[1745872226822,4.984,1790.0,1789.9,8.11021266]
[1745872227027,0.8259,1790.4,1790.2,5.58594038]
[1745872227331,4.983,1790.3,1790.2,5.58594038]
[1745872228599,6.05,1790.5,1790.3,5.58541019]
[1745872228806,4.983,1790.4,1790.3,5.58541019]
[1745872229836,4.983,1790.4,1790.2,6.35996809]
[1745872230037,4.31727003,1790.4,1790.3,5.58565603]
[1745872230743,4.31727003,1790.4,1790.3,6.13565603]
[1745872231510,4.983,1790.6,1790.5,5.58499315]
[1745872232946,4.983,1790.6,1790.4,5.58531642]
[1745872235152,4.983,1790.6,1790.3,5.58546418]
[1745872235449,0.8318,1790.5,1790.2,5.58577736]
[1745872235752,0.8318,1790.5,1790.1,0.96273479]
[1745872235949,0.8318,1790.5,1790.2,5.58573524]
[1745872236663,0.8318,1790.5,1790.3,5.58553116]
[1745872237654,0.8318,1790.5,1790.2,11.17149928]
[1745872237852,0.8318,1790.5,1790.3,5.58563814]
[1745872238151,6.41685136,1790.5,1790.0,6.37208518]
[1745872238315,5.58582693,1790.3,1789.8,5.58705819]
[1745872238516,4.983,1790.2,1790.0,5.58649365]
[1745872238856,4.983,1790.2,1789.9,5.5867417]
[1745872239238,0.7842,1790.1,1789.7,5.58734948]
[1745872239556,0.7842,1790.1,1789.9,5.58677624]
[1745872239761,1.36092,1790.1,1789.8,5.58700399]
[1745872240325,1.36092,1790.1,1789.8,11.17400798]
[1745872240540,1.36092,1790.1,1789.8,5.58700399]
[1745872240740,1.36092,1790.1,1789.8,11.1740017]
[1745872240966,1.36092,1790.1,1789.9,5.58690237]
[1745872241264,1.36092,1790.1,1789.8,5.58699771]
[1745872241463,1.36092,1790.1,1789.8,11.17400195]
[1745872241629,1.36092,1790.1,1789.8,5.58699771]
[1745872242065,1.36092,1790.1,1789.9,5.58679249]
[1745872244233,1.36092,1790.1,1789.8,5.587]
[1745872244871,1.36092,1790.1,1789.8,11.17400693]
[1745872245163,1.36092,1790.1,1789.9,5.58670214]
[1745872245365,1.36092,1790.1,1789.8,5.587]
[1745872246129,1.36092,1790.1,1789.9,5.58688105]
[1745872246464,1.36092,1790.1,1789.8,11.17401901]
[1745872246676,1.36092,1790.1,1789.8,5.587]
[1745872246834,1.36092,1790.1,1789.8,11.17400511]
[1745872247469,1.36092,1790.1,1789.8,5.587]
[1745872247870,1.36092,1790.1,1789.8,11.17403136]
[1745872248080,1.36092,1790.1,1789.8,5.587]
[1745872249576,6.94720893,1790.1,1789.8,5.587]
[1745872250093,0.69472089,1790.0,1788.9,5.59002251]
[1745872250390,5.58767015,1789.7,1789.3,5.58861121]
[1745872250595,11.35802604,1789.6,1789.2,0.8202]
[1745872250756,4.983,1789.5,1789.2,5.58896888]
[1745872251155,4.983,1789.5,1789.2,5.58888448]
[1745872251372,4.983,1789.5,1789.2,5.58886416]
[1745872251887,4.96689768,1789.5,1789.2,5.58886416]
[1745872252545,0.8298,1789.3,1789.0,5.58957271]
[1745872252740,0.8298,1789.3,1789.0,11.17909404]
[1745872253066,0.8298,1789.3,1789.0,5.58952133]
[1745872253267,6.41868813,1789.3,1788.9,5.58983943]
[1745872253470,7.06055694,1789.3,1788.9,5.58983316]
[1745872254373,5.58927031,1789.2,1788.7,0.7639]
[1745872254577,1.47166881,1789.3,1788.9,5.58999211]
[1745872254578,4.981,1789.1,1788.9,5.58999211]
[1745872255504,5.59019689,1788.9,1788.4,6.37407222]
[1745872255685,5.59050388,1788.8,1788.4,5.59157222]
[1745872255858,5.7543,1788.7,1788.4,5.59157222]
[1745872256371,5.7543,1788.7,1788.4,5.59134889]
[1745872256569,5.7543,1788.7,1788.4,11.18273222]
[1745872257496,5.7543,1788.7,1788.5,5.5912694]
[1745872259104,5.7543,1788.7,1788.4,5.59143607]
[1745872259398,5.7543,1788.7,1788.4,11.1828228]
[1745872259596,5.7543,1788.7,1788.4,5.59138673]
[1745872263696,5.7543,1788.7,1788.4,11.18281278]
[1745872264058,5.7543,1788.7,1788.4,5.59138673]
[1745872264558,5.7543,1788.7,1788.4,5.59136906]
[1745872264797,5.7543,1788.7,1788.4,11.18273336]
[1745872264995,5.7543,1788.7,1788.4,5.5913643]
[1745872265198,6.88876542,1788.7,1788.4,5.5913643]
[1745872265888,12.47943638,1788.7,1788.4,5.5913643]
[1745872266207,12.47943638,1788.7,1788.3,11.18351988]
[1745872266720,6.88876542,1788.7,1788.4,5.59154288]
[1745872268282,5.7543,1788.7,1788.4,5.59154288]
[1745872269006,11.34498687,1788.7,1788.2,6.37452478]
[1745872269210,5.59106962,1788.6,1788.3,5.59177408]
[1745872269867,11.34505513,1788.7,1788.3,11.18349593]
[1745872270181,5.7543,1788.7,1788.4,5.59148468]
[1745872270381,5.7543,1788.7,1788.4,5.59142685]
[1745872271511,5.7543,1788.7,1788.2,0.7825]
[1745872271810,5.7543,1788.7,1788.4,5.59132094]
[1745872272011,5.7543,1788.7,1788.6,5.590965]
[1745872272012,4.981,1788.7,1788.6,5.590965]
[1745872272226,4.981,1788.7,1788.4,6.15054974]
[1745872272392,0.8325,1788.6,1788.4,5.59141765]
[1745872272712,0.8325,1788.6,1788.4,5.5914174]
[1745872273483,0.8325,1788.6,1788.3,5.59169221]
[1745872273704,6.423593,1788.6,1788.3,5.59169221]
[1745872273890,6.423593,1788.6,1788.3,5.59187476]
[1745872274241,6.4148175,1788.4,1788.1,5.59236534]
[1745872274415,4.984,1788.3,1788.0,5.59271738]
[1745872274578,4.984,1788.3,1788.1,5.59229663]
[1745872276615,4.984,1788.3,1788.1,5.59228696]
[1745872276913,11.64054577,1788.8,1788.4,11.18283316]
[1745872277101,5.7862,1788.7,1788.5,5.59118214]
[1745872277302,5.7862,1788.7,1788.4,5.59137833]
[1745872278727,5.7862,1788.7,1788.4,5.59137204]
[1745872279340,11.37695907,1788.7,1788.1,1.3130287]
[1745872279506,5.59184412,1788.4,1788.0,5.59266769]
[1745872279708,5.59231544,1788.2,1787.9,5.5930301]
[1745872280027,0.7783,1788.1,1787.9,5.5930301]
[1745872280193,4.985,1788.3,1788.0,5.59284116]
[1745872280398,0.7783,1788.2,1788.0,11.185484]
[1745872280631,0.7783,1788.2,1788.0,5.59264284]
[1745872280995,0.7783,1788.2,1788.1,5.59252838]
[1745872281193,5.7633,1788.3,1788.1,5.59252838]
[1745872283548,5.7633,1788.3,1788.1,5.59251026]
[1745872284894,0.7783,1788.3,1788.1,5.59251026]
[1745872285097,4.983,1788.2,1788.1,5.59251026]
[1745872285551,6.8346,1788.4,1788.2,5.59221563]
[1745872285712,4.983,1788.3,1788.2,5.59221563]
[1745872287245,4.983,1788.3,1788.1,5.59231046]
[1745872287423,4.983,1788.3,1788.1,11.18465525]
[1745872287612,4.983,1788.3,1788.1,11.18462034]
[1745872287910,4.983,1788.3,1788.1,5.59230988]
[1745872290420,4.983,1788.3,1788.1,5.5923012]
[1745872290621,4.983,1788.3,1788.2,5.59221563]
[1745872291120,6.8346,1788.4,1788.2,5.59221563]
[1745872291322,4.983,1788.3,1788.2,5.59221563]
[1745872291521,4.983,1788.3,1788.1,5.59252765]
[1745872291752,6.8346,1788.4,1788.1,5.59252765]
[1745872291952,4.983,1788.3,1788.2,5.59220126]
[1745872292153,4.983,1788.3,1788.1,5.59252765]
[1745872292446,6.8346,1788.4,1788.1,11.18489514]
[1745872292669,0.805,1788.0,1787.1,0.7794]
[1745872292815,5.59335486,1787.9,1787.5,5.59418285]
[1745872293028,5.788,1787.8,1787.5,11.18835087]
[1745872293229,5.59395138,1787.7,1787.3,5.59493788]
[1745872293732,11.38167385,1787.8,1787.4,5.5945801]
[1745872295767,5.5938515,1787.7,1787.3,5.59479792]
[1745872295941,5.5938515,1787.7,1787.3,11.18965642]
[1745872296342,5.5938515,1787.7,1787.3,5.59479792]
[1745872296552,11.38167385,1787.8,1787.3,11.18960729]
[1745872296839,11.38167385,1787.8,1787.3,5.59479792]
[1745872297076,11.38167385,1787.8,1787.3,11.18959674]
[1745872297363,11.38167385,1787.8,1787.4,5.59468191]
[1745872297769,5.59380835,1787.7,1787.4,6.42618191]
[1745872298127,5.59380835,1787.7,1787.4,0.8315]
[1745872298360,5.59380835,1787.7,1787.3,6.42633266]
[1745872298859,5.59380835,1787.7,1787.3,12.02117423]
[1745872299062,5.59380835,1787.7,1787.3,6.42633266]
[1745872300450,5.59380835,1787.7,1787.3,5.59483266]
[1745872301579,11.1878543,1787.7,1787.3,5.59483266]
[1745872301789,5.59380835,1787.7,1787.3,5.59483266]
[1745872303193,5.59380835,1787.7,1787.3,5.59481867]
[1745872303346,5.59380835,1787.7,1787.4,5.5946565]
[1745872306090,11.38161915,1787.8,1787.4,5.5946565]
[1745872306091,11.38167642,1787.8,1787.4,5.5946565]
[1745872308106,16.97544952,1787.8,1787.4,5.5946565]
[1745872308711,5.59399033,1787.7,1787.3,5.59481867]
[1745872309014,0.7978,1787.5,1786.7,0.7982]
[1745872309174,5.59411004,1787.6,1786.7,6.39483575]